Workbook

Sheet Ark1
C3: Tilskuddskalkulator 2023
C4: Vet du hvor mye din kommune får i tilskudd fra IMDi i 2023? Denne kalkulatoren hjelper deg å beregne tilskuddene knyttet til flyktninger og innvandrere for 2023 med satser i revidert statsbudsjett for 2023 (Juni).
C6: For å bruke kalkulatoren, trykk først på knappen "Aktiver innhold" helt øverst, så vil det komme opp en dialogboks, trykk deretter på "Ja". Dette er for å aktivere Makroer. Gå til de aktuelle tilskuddsordninger for å se hvilke satser som gjelder i år og sett inn antall personer som utløser de ulike satsene i kolonnen som heter Sett inn antall. Ved behov for mer informasjon om det enkelte tilskudd, kan man trykke på knappen, og få ytterligere informasjon om satsene. For å se totalt tilskuddsbeløp for ordningene samlet, trykk "Gå til oppsummeringstabellen" nederst. Du kan nullstille beløp og antall i en bestemt tabell ved å trykke på "Nullstill denne tabellen" ved siden av i tabellen, eller i hele arket alt ved å trykke på nullstillknappen nederst på arket. For å estimere deling av tilskudd mellom kommuner er det også mulig å legge inn desimaltall, husk å bruke komma om du vil legge inn desimaltall. Delingsnøkler finnes i de respektive rundskrivene.
C7: Har du spørsmål om Tilskuddskalkulator? Send e-post til nama@imdi.no
C9: Integreringstilskudd, eldretilskudd og barnehagetilskudd
C10: Ordningen gjelder i all hovedsak flyktninger og deres familiegjenforente som ble bosatt i perioden 2019-2023. Det er forskjellige satser som gjelder avhengig av hvilket år personene ble bosatt for første gang, og hvilken kategori de tilhører.
C11: Les mer om ordningen på imdi.no.
C13: Tilskuddsår | D13: Bosettingsår | E13: Kategori | G13: Sats | H13: Sett inn antall | I13: Tilskuddsbeløp
C14: Integreringstilskudd år 1 | D14: 2023 | E14: Enslige voksne | G14: 241100 | I14: =G14*H14 -> 0
E15: Voksne | G15: 194400 | I15: =G15*H15 -> 0
E16: Enslige mindreårige | G16: 187000 | I16: 0
E17: Barn | G17: 194400 | I17: 0
C18: Integreringstilskudd år 2 | D18: 2022 | E18: Alle flyktninger | G18: 249500 | I18: 0
C19: Integreringstilskudd år 3 | D19: 2021 | E19: Alle flyktninger | G19: 177400 | I19: 0
C20: Integreringstilskudd år 4 | D20: 2020 | E20: Alle flyktninger | G20: 88000 | I20: 0
C21: Integreringstilskudd år 5 | D21: 2019 | E21: Alle flyktninger | G21: 72000 | I21: 0
C22: Barnehagetilskudd | D22: 2023 | E22: Barn 0-5 år | G22: 27800 | I22: 0
C23: Eldretilskudd | D23: 2023 | E23: Voksne over 60 år | G23: 180600 | I23: 0
I24: =SUM(I14:I23) -> 0
C28: Særskilt tilskudd for bosetting av enslige mindreårige flyktninger
C29: Enslige mindreårige (EM) er en fellesbetegnelse for alle barn og unge under 18 år som kommer til landet uten foreldre eller andre voksne med foreldreansvar i Norge. Det er forskjellige satser som gjelder avhengig av barnets alder og bosettingstidspunkt. Tilskuddet utbetales til og med året den enslige mindreårige fyller 20 år.
C30: Les mer om ordningen på imdi.no.
C32: Bosettingstidspunkt | D32: Lav sats | E32: Sett inn antall | G32: Høy sats | H32: Sett inn antall | J32: Tilskuddsbeløp
C33: Før 2023 | D33: 721800 | G33: 1144400 | J33: =D33*E33+G33*H33 -> 0
C34: 2023-01-01 | D34: =D33 -> 721800 | G34: =G33 -> 1144400 | J34: 0
C35: 2023-02-01 | D35: =$D$33*11/12 -> 661650 | G35: =$G$33*11/12 -> 1049033.333 | J35: 0
C36: 2023-03-01 | D36: =$D$33*10/12 -> 601500 | G36: =$G$33*10/12 -> 953666.6667 | J36: 0
C37: 2023-04-01 | D37: =$D$33*9/12 -> 541350 | G37: =$G$33*9/12 -> 858300 | J37: 0
C38: 2023-05-01 | D38: =$D$33*8/12 -> 481200 | G38: =$G$33*8/12 -> 762933.3333 | J38: 0
C39: 2023-06-01 | D39: =$D$33*7/12 -> 421050 | G39: =$G$33*7/12 -> 667566.6667 | J39: 0
C40: 2023-07-01 | D40: =$D$33*6/12 -> 360900 | G40: =$G$33*6/12 -> 572200 | J40: 0
C41: 2023-08-01 | D41: =$D$33*5/12 -> 300750 | G41: =$G$33*5/12 -> 476833.3333 | J41: 0
C42: 2023-09-01 | D42: =$D$33*4/12 -> 240600 | G42: =$G$33*4/12 -> 381466.6667 | J42: 0
C43: 2023-10-01 | D43: =$D$33*3/12 -> 180450 | G43: =$G$33*3/12 -> 286100 | J43: 0
C44: 2023-11-01 | D44: =$D$33*2/12 -> 120300 | G44: =$G$33*2/12 -> 190733.3333 | J44: 0
C45: 2023-12-01 | D45: =$D$33*1/12 -> 60150 | G45: =$G$33*1/12 -> 95366.66667 | J45: 0
C47: Totalt | J47: =SUM(J33:J46) -> 0
C51: Tilskudd til opplæring i norsk og samfunnskunnskap for voksne innvandrere
C52: Kommunen mottar dette tilskuddet for voksne innvandrere som bor i kommunen og som har rett og plikt til opplæring i norsk og samfunnskunnskap. Tilskuddet utbetales per person i målgruppen (persontilskudd), som regel over tre år. Kommunene som har 150 personer eller færre i målgruppen, får også et grunntilskudd.
C53: Les mer om ordningen på imdi.no.
C55: Tilskudd* | D55: Lav sats | E55: Antall personer i kommunen med lav sats | G55: Høy sats | H55: Antall personer i kommunen med høy sats | J55: Tilskuddsbeløp
C56: Persontilskudd år 1 (2023) | D56: 16100 | G56: 38100 | J56: =D56*E56+G56*H56 -> 0
C57: Persontilskudd år 2 (2022) | D57: 29300 | G57: 75600 | J57: =D57*E57+G57*H57 -> 0
C58: Persontilskudd år 3 (2021) | D58: 18400 | G58: 52100 | J58: =D58*E58+G58*H58 -> 0
C59: Grunntilskudd for 2023 | D59: 224100 | E59: Velg beløpet for Grunntilskudd her | G59: 665300 | H59: 5 | J59: Velg beløpet for Grunntilskudd her
J60: =SUM(J56:J59) -> 0
C61: *I kolonnen ‘tilskudd’ indikerer årstallene i parentes det året som personene som utløser persontilskuddet kom inn i målgruppen. | J61: =SUM(E56:E58)+SUM(H56:H58) -> 0
C64: Tilskudd til opplæring i norsk for voksne personer med kollektiv beskyttelse
C65: Kommunen mottar dette tilskuddet for voksne personer med kollektiv beskyttelse som bor i kommunen og som har rett til opplæring i norsk. Tilskuddet utbetales per person i målgruppen (persontilskudd), og er ettårig. Kommunene som har 150 personer eller færre i målgruppen, får også et grunntilskudd i 2023.
C66: Les mer om ordningen på imdi.no.
C68: Tilskudd* | D68: Lav sats | E68: Antall personer i kommunen med lav sats | G68: Høy sats | H68: Antall personer i kommunen med høy sats | J68: Tilskuddsbeløp
C69: Personstilskudd § 37 d år 1 (2023) | G69: 46400 | J69: =G69*H69 -> 0
C70: Totalt | J70: =SUM(J69) -> 0
C71: *I kolonnen ‘tilskudd’ indikerer årstallene i parentes det året som personene som utløser persontilskuddet kom inn i målgruppen.
C74: Tilskudd for bosetting av personer med nedsatt funksjonsevne og/eller atferdsvansker
C75: Kommunen mottar dette tilskuddet ved bosetting av flyktninger med alvorlige, kjente funksjonshemminger og/eller atferdsvansker.Tilskuddsordningen skal dekke ekstraordinære kommunale utgifter som følger av bosetting av flyktninger med nedsatt fysisk og/eller psykisk funksjonsevne; samt personer med voldelig adferd og rusproblemer eller alvorlige atferdsproblemer. Satsen avhenger av når vedkommende er bosatt. Ordningen består av to typer tilskudd: Tilskudd 1 og Tilskudd 2. Tilskudd 1 er et engangstilskudd og kan tildeles i enten første eller andre bosettingsår. Tilskudd 2 kan tildeles årlig i integreringstilskuddsperioden, det vil si i maksimalt 5 år.
C76: Les mer om ordningen på imdi.no.
C78: Bosettingstidspunkt | D78: Tilskudd 1 | E78: Antall personer med tilskudd 1 | G78: Tilskudd 2 (maks. sats) | H78: Stipulert inntekt for tilskudd 2 | J78: Tilskuddsbeløp T1 + T2
C79: 2023 | D79: 196400 | G79: 1520000 | J79: =D79*E79+H79 -> 0
C80: 2022 | D80: 196400 | G80: 1520000 | J80: =D80*E80+H80 -> 0
C81: 2021 | D81: 196400 | G81: 1430000 | J81: 0
C82: 2020 | D82: 190500 | G82: 1361000 | J82: 0
C83: Totalt | J83: =SUM(J79:J82) -> 0
C87: Tilskuddsordning til opplæring i norsk og samfunnskunnskap for asylsøkarar i mottak 2023
C88: Kommuner som tilbyr opplæring til asylsøkere norsk eller samfunnskunnskap i mottak. Tilskuddene utbetales per person som er i målgruppa for ordningene.
C89: Les mer om ordningen på imdi.no.
C91: Kategori | F91: Antall personer i målgruppen
C92: Opplæring i norsk for asysøkere | E92: 16000 | H92: =E92*F92 -> 0
C93: Opplæring for samfunnskunnskap | E93: 2300 | H93: =E93*G93 -> 0
C94: Totalt | H94: =SUM(H92:H93) -> 0
C101: Oppsummeringstabell
C102: Denne tabellen oppsummerer sum av beregnet tilskudd til kommunen i 2023.
C103: Les mer om IMDis tilskuddsordninger på imdi.no.
C105: Tilskuddsordning
C106: Integreringstilskudd | F106: =I24 -> 0
C107: Særskilt tilskudd for bosetting av enslige mindreårige flyktninger | F107: =J47 -> 0
C108: Tilskudd til opplæring i norsk og samfunnskunnskap for voksne innvandrere | F108: =J60 -> 0
C109: Tilskudd til opplæring i norsk for voksne personer med kollektiv beskyttelse | G109: =J70 -> 0
C110: Tilskudd for bosetting av personer med nedsatt funksjonsevne og/eller atferdsvansker | F110: =J83 -> 0
C111: Tilskudd til opplæring i norsk, norsk kultur og norske verdier for asylsøkere | F111: =H94 -> 0
C112: Totalt | F112: =SUM(F106:F111) -> 0
